bitfinex/quotes_SOLUSD_20250928
["timestamp","ask_amount","ask_price","bid_price","bid_amount"]
[1759064334848,0.65,198.97,198.92,5.72711446]
[1759064335048,0.65,198.96,198.92,5.72711446]
[1759064337965,133.6,198.98,198.92,5.02711446]
[1759064338273,0.65,198.97,198.93,0.7]
[1759064340676,0.65,198.96,198.91,0.7]
[1759064341473,159.6,198.95,198.89,0.7]
[1759064341669,134.25,198.94,198.89,0.7]
[1759064342176,0.65,198.93,198.89,0.7]
[1759064342759,0.65,198.93,198.88,5.12810318]
[1759064342958,133.6,198.94,198.89,0.7]
[1759064343167,134.25,198.94,198.89,0.7]
[1759064343469,0.65,198.93,198.88,0.1]
[1759064343674,0.65,198.92,198.88,0.1]
[1759064343859,0.65,198.91,198.88,0.1]
[1759064344453,133.6,198.93,198.88,0.1]
[1759064344654,0.65,198.92,198.88,0.8]
[1759064345370,133.6,198.93,198.88,0.3]
[1759064345568,0.65,198.92,198.88,0.3]
[1759064345878,0.65,198.92,198.86,5.02862968]
[1759064346077,133.6,198.93,198.86,5.02862968]
[1759064346271,0.65,198.91,198.85,0.1]
[1759064346581,133.6,198.9,198.85,5.12887926]
[1759064346873,134.25,198.9,198.85,5.12887926]
[1759064347475,134.25,198.9,198.86,0.7]
[1759064347776,133.6,198.9,198.87,0.7]
[1759064347965,133.6,198.9,198.85,5.12887926]
[1759064348157,133.6,198.9,198.86,0.7]
[1759064348676,133.6,198.9,198.87,5.02841051]
[1759064348876,134.25,198.9,198.85,0.1]
[1759064349182,134.25,198.9,198.86,0.7]
[1759064349383,134.25,198.9,198.87,0.7]
[1759064349766,133.6,198.9,198.87,0.7]
[1759064350181,133.6,198.9,198.87,5.72838749]
[1759064350378,133.6,198.9,198.88,0.7]
[1759064351270,133.6,198.9,198.89,0.71]
[1759064351584,133.6,198.9,198.89,5.73790487]
[1759064351780,133.6,198.9,198.89,19.33349888]
[1759064351974,133.6,198.9,198.89,18.62349888]
[1759064352175,133.6,198.9,198.89,19.33349888]
[1759064353179,133.6,198.99,198.9,13.59559401]
[1759064353383,0.71,198.97,198.92,5.02714659]
[1759064353588,133.6,198.98,198.92,5.02714659]
[1759064353789,0.71,198.97,198.92,5.73714659]
[1759064354087,0.71,198.97,198.93,0.71]
[1759064354475,0.71,198.97,198.93,5.73680087]
[1759064354973,0.71,198.97,198.93,0.71]
[1759064355288,0.71,198.96,198.91,0.71]
[1759064355474,0.71,198.96,198.91,5.02730691]
[1759064355777,0.71,198.96,198.92,0.71]
[1759064355976,0.71,198.96,198.93,0.71]
[1759064356577,0.71,198.96,198.93,5.73689241]
[1759064358996,134.31,198.98,198.94,0.71]
[1759064359169,133.6,198.97,198.94,0.71]
[1759064360782,134.3,198.97,198.94,0.71]
[1759064361093,134.3,198.97,198.92,5.69710561]
[1759064361282,134.3,198.97,198.93,0.67]
[1759064361593,134.3,198.97,198.94,0.67]
[1759064362289,134.3,198.97,198.92,0.67]
[1759064362494,0.7,198.96,198.93,0.67]
[1759064363796,133.6,198.97,198.93,5.69682477]
[1759064364174,134.3,198.97,198.93,5.69682477]
[1759064364868,134.3,198.97,198.94,0.67]
[1759064365505,0.7,198.96,198.93,5.02682477]
[1759064365808,133.6,198.97,198.93,5.02682477]
[1759064365998,134.3,198.97,198.93,5.69682477]
[1759064366194,134.3,198.97,198.93,0.67]
[1759064366774,134.3,198.97,198.93,5.69681303]
[1759064366978,0.7,198.96,198.93,5.02681303]
[1759064367398,0.7,198.96,198.91,5.02739932]
[1759064368599,133.6,198.97,198.93,5.02689388]
[1759064368798,133.6,198.97,198.94,0.67]
[1759064369396,133.6,198.97,198.93,5.69689388]
[1759064369898,133.6,198.97,198.93,0.67]
[1759064370583,134.3,198.97,198.93,0.67]
[1759064370997,134.3,198.97,198.93,5.69685299]
[1759064372312,0.7,198.96,198.93,5.69685299]
[1759064373909,134.3,198.97,198.93,5.69685299]
[1759064374704,0.7,198.96,198.93,5.69685299]
[1759064376408,134.3,198.97,198.93,5.69685299]
[1759064377199,0.7,198.96,198.93,5.69685299]
[1759064377397,133.6,198.97,198.93,5.69685299]
[1759064377597,134.3,198.97,198.94,0.67]
[1759064378103,133.6,198.97,198.92,5.02714659]
[1759064378328,133.6,198.97,198.93,13.59559401]
[1759064378609,133.6,198.97,198.94,0.67]
[1759064378788,133.6,198.97,198.95,13.59559401]
[1759064379111,133.6,198.97,198.96,0.67]
[1759064380116,133.6,198.97,198.96,19.29172991]
[1759064381096,133.6,198.97,198.96,14.26559401]
[1759064381308,133.6,198.97,198.96,13.59559401]
[1759064381504,133.6,198.97,198.96,18.62172991]
[1759064381712,0.7,198.97,198.93,18.62243434]
[1759064381904,0.7,198.96,198.92,5.02708125]
[1759064382103,0.7,198.95,198.91,39.14]
[1759064382317,0.7,198.94,198.91,39.14]
[1759064382512,0.7,198.93,198.91,39.14]
[1759064383310,133.6,198.97,198.91,44.16729465]
[1759064383618,0.7,198.93,198.91,39.14]
[1759064384306,0.7,198.94,198.91,44.16737727]
[1759064385917,0.7,198.94,198.91,39.14]
[1759064388347,133.6,198.96,198.91,39.81]
[1759064388523,0.7,198.95,198.91,39.81]
[1759064388719,0.7,198.94,198.91,44.83737919]
[1759064392399,133.6,198.96,198.92,0.66]
[1759064392605,133.6,198.96,198.93,0.66]
[1759064393099,0.68,198.97,198.93,0.66]
[1759064393100,133.6,198.95,198.93,0.66]
[1759064394028,133.6,198.95,198.91,39.14]
[1759064394029,133.6,198.95,198.91,39.8]
[1759064394225,133.6,198.95,198.92,0.66]
[1759064394523,134.28,198.95,198.92,0.66]
[1759064394729,133.6,198.95,198.93,0.66]
[1759064395611,133.6,198.95,198.92,5.68694834]
[1759064398628,133.6,198.95,198.93,0.66]
[1759064399018,134.28,198.95,198.91,44.80737055]
[1759064399217,134.28,198.95,198.92,0.66]
[1759064399531,134.28,198.95,198.91,44.14737055]
[1759064399727,134.28,198.95,198.91,39.78]
[1759064400037,0.68,198.94,198.91,39.12]
[1759064400329,0.68,198.93,198.9,39.12]
[1759064400538,0.68,198.92,198.87,5.68841051]
[1759064400722,0.68,198.91,198.87,44.80841051]
[1759064400919,0.68,198.91,198.87,0.66]
[1759064401116,159.6,198.95,198.86,13.59559401]
[1759064401117,0.68,198.9,198.86,13.59559401]
[1759064401433,0.68,198.9,198.86,58.40418991]
[1759064401612,159.6,198.95,198.86,58.40418991]
[1759064401613,26.0,198.91,198.86,53.37559401]
[1759064401811,0.68,198.89,198.85,39.22]
[1759064402022,0.68,198.88,198.85,39.88]
[1759064402219,0.68,198.88,198.85,44.90886907]
[1759064402426,133.6,198.96,198.86,14.25559401]
[1759064402619,20.0,199.07,198.88,13.59559401]
[1759064402620,0.68,199.0,198.88,13.59559401]
[1759064402816,15.1282116,198.94,198.9,13.59559401]
[1759064403010,0.68,199.03,198.92,13.59559401]
[1759064403011,18.64,199.03,198.92,13.59559401]
[1759064403213,0.68,199.05,198.94,13.59559401]
[1759064403429,0.68,199.05,198.96,13.59559401]
[1759064403712,26.68,199.05,198.96,13.59559401]
[1759064404017,0.68,199.05,198.98,13.59559401]
[1759064404224,0.68,199.05,198.99,39.78]
[1759064404418,0.68,199.05,199.0,0.66]
[1759064404623,0.68,199.07,199.01,44.14487312]
[1759064404826,0.68,199.07,199.02,0.66]
[1759064405035,0.68,199.06,199.02,0.66]
[1759064406012,0.68,199.06,199.02,39.78]
[1759064406430,0.68,199.06,199.03,39.12]
[1759064407229,0.68,199.06,199.03,39.1]
[1759064408846,0.68,199.05,199.03,39.1]
[1759064409140,0.68,199.05,199.0,0.66]
[1759064409141,0.68,199.05,199.01,39.1]
[1759064409343,0.68,199.05,199.01,39.76]
[1759064409524,0.68,199.04,199.0,0.66]
[1759064409849,0.68,199.04,198.98,13.59559401]
[1759064409850,0.68,199.03,198.98,19.28118447]
[1759064410439,26.0,199.07,198.99,39.1]
[1759064410649,0.7,199.08,199.01,5.02487312]
[1759064410942,0.7,199.07,199.02,0.65]
[1759064411145,0.7,199.06,199.02,0.65]
[1759064412622,26.7,199.08,199.03,0.65]
[1759064412823,26.0,199.08,199.03,5.67426724]
[1759064413045,26.0,199.08,199.04,0.65]
[1759064413532,26.0,199.09,199.04,0.65]
[1759064414245,0.2,199.1,199.04,0.65]
[1759064414737,0.2,199.1,199.04,5.67405355]
[1759064414946,0.9,199.1,199.04,5.67405355]
[1759064415242,0.9,199.1,199.05,0.65]
[1759064415941,0.9,199.1,199.04,44.10405355]
[1759064416135,0.9,199.1,199.06,0.65]
[1759064416835,0.9,199.1,199.04,39.73]
[1759064417147,0.7,199.09,199.04,39.73]
[1759064417443,0.2,199.1,199.05,0.65]
[1759064417638,0.9,199.1,199.06,0.65]
[1759064418439,0.7,199.09,199.04,39.08]
[1759064418642,0.7,199.08,199.04,0.65]
[1759064419045,0.7,199.08,199.01,28.70932484]
[1759064419046,0.7,199.07,199.02,0.65]
[1759064419244,26.2,199.1,199.02,0.65]
[1759064419245,0.7,199.06,199.02,52.67559401]
[1759064419431,0.7,199.06,199.02,0.65]
[1759064419630,0.7,199.06,199.01,44.10485744]
[1759064419950,26.2,199.1,199.02,0.65]
[1759064419951,0.7,199.07,199.02,0.65]
[1759064420150,0.7,199.07,199.01,44.10485744]
[1759064420328,0.7,199.07,199.03,0.65]
[1759064422652,0.7,199.07,199.02,5.02451529]
[1759064422836,134.32,199.09,199.03,0.66]
[1759064425035,134.32,199.09,199.03,5.68424892]
[1759064425558,0.72,199.08,199.03,5.68424892]
[1759064425735,133.6,199.07,199.04,0.66]
[1759064426058,134.32,199.07,199.02,0.66]
[1759064426242,134.32,199.07,199.03,0.66]
[1759064426443,0.72,199.06,199.03,0.66]
[1759064427350,159.6,199.07,199.01,39.06]
[1759064427549,26.0,199.04,198.97,0.66]
[1759064427745,26.0,199.04,198.98,13.59559401]
[1759064427746,159.6,199.04,198.98,13.59559401]
[1759064427945,0.72,199.03,198.98,13.59559401]
[1759064428145,0.72,199.03,198.99,0.66]
[1759064428345,159.6,199.04,199.0,0.66]
[1759064428549,160.32,199.04,199.0,0.66]
[1759064428855,159.6,199.04,199.01,0.66]
[1759064430254,159.6,199.04,199.01,5.02480999]
[1759064430554,133.6,199.04,199.02,0.66]
[1759064430747,133.6,199.04,199.01,5.02480999]
[1759064430953,133.6,199.04,199.02,0.66]
[1759064431153,133.6,199.04,199.02,5.02453162]
[1759064431355,133.6,199.04,199.03,0.66]
[1759064433867,134.32,199.04,199.0,5.68495496]
[1759064434168,134.32,199.04,199.0,5.02495496]
[1759064434354,133.6,199.04,199.01,14.25559401]
[1759064434546,133.6,199.04,198.99,13.59559401]
[1759064434547,0.72,199.03,198.99,13.59559401]
[1759064434741,0.72,199.03,198.99,0.66]
[1759064434956,26.0,199.01,198.98,15.1167771]
[1759064435137,26.0,198.99,198.98,15.1167771]
[1759064435342,26.0,198.97,198.9,5.02746876]
[1759064435657,26.0,198.95,198.9,5.02746876]
[1759064436059,26.72,198.95,198.9,5.68746876]
[1759064436568,26.72,198.95,198.86,0.66]
[1759064436569,0.72,198.94,198.86,0.66]
[1759064436942,26.0,198.91,198.86,0.66]
[1759064437267,26.72,198.9,198.85,0.1]
[1759064438256,0.72,198.9,198.85,0.1]
[1759064438456,26.0,198.89,198.85,0.1]
[1759064438659,0.72,198.88,198.85,0.1]
[1759064440262,13.59559401,198.92,198.85,0.1]
[1759064440570,26.72,198.88,198.85,0.1]
[1759064440966,0.72,198.88,198.85,0.1]
[1759064441264,26.0,198.86,198.85,0.1]
[1759064441463,65.78,198.86,198.85,0.1]
[1759064441686,0.72,198.86,198.85,0.1]
[1759064441982,2.73780715,198.86,198.85,0.1]
[1759064442153,28.73780715,198.86,198.85,0.1]
[1759064443270,0.72,198.89,198.85,0.1]
[1759064443670,2.01750183,198.9,198.85,0.1]
[1759064443847,26.0,198.88,198.85,0.1]
[1759064444456,0.72,198.87,198.85,0.1]
[1759064444978,26.0,198.88,198.85,0.1]
[1759064445353,26.0,198.88,198.85,0.76]
[1759064445671,0.72,198.87,198.85,0.1]
[1759064445849,26.72,198.88,198.85,0.1]
[1759064448082,0.72,198.87,198.85,0.1]
[1759064449366,133.6,198.86,198.85,0.1]
[1759064449578,134.32,198.86,198.85,0.1]
[1759064450581,0.72,198.86,198.85,0.1]
[1759064453059,67.79770537,198.88,198.85,0.1]
[1759064453478,0.7,198.87,198.85,0.1]
[1759064454892,26.0,198.86,198.85,0.1]
[1759064455262,0.7,198.87,198.85,0.1]
[1759064455465,26.0,198.86,198.85,0.1]
[1759064456784,6.54965014,198.9,198.85,0.82]
[1759064456971,6.54965014,198.9,198.86,0.72]
[1759064457173,26.0,198.93,198.86,0.72]
[1759064457174,26.0,198.89,198.86,0.72]
[1759064458562,26.0,198.89,198.87,0.72]
[1759064459578,0.7,198.91,198.87,0.72]
[1759064459885,26.0,198.9,198.87,0.72]
[1759064460084,26.0,198.9,198.88,0.72]
[1759064460273,26.0,198.9,198.86,5.74860171]
[1759064460468,26.0,198.9,198.86,0.72]
[1759064461274,133.6,198.89,198.86,0.72]
[1759064461476,134.3,198.89,198.85,0.1]
[1759064461781,0.7,198.88,198.85,0.1]
[1759064462176,0.7,198.87,198.85,0.1]
[1759064462377,133.6,198.89,198.85,0.1]
[1759064462571,0.7,198.87,198.85,0.1]
[1759064463670,134.3,198.89,198.85,5.12890206]
[1759064463981,26.0,198.87,198.86,0.72]
[1759064464285,26.0,198.87,198.85,5.12890206]
[1759064464664,133.6,198.89,198.86,0.72]
[1759064465060,133.6,198.89,198.87,5.02841051]
[1759064465288,133.6,198.89,198.88,0.72]
[1759064465662,133.6,198.89,198.86,5.74860184]
[1759064466378,133.6,198.89,198.86,5.02860184]
[1759064466578,133.6,198.89,198.87,0.72]
[1759064467395,133.6,198.89,198.87,5.74834931]
[1759064469089,133.6,198.89,198.87,5.02834931]
[1759064469277,133.6,198.89,198.88,5.74815768]
[1759064471885,133.6,198.89,198.88,19.34375169]
[1759064472871,0.7,198.96,198.89,13.59559401]
[1759064473073,0.7,198.96,198.9,0.67]
[1759064473277,0.7,198.96,198.91,5.02739932]
[1759064473472,0.7,198.96,198.92,0.67]
[1759064475283,0.7,198.96,198.92,5.69698311]
[1759064475684,133.6,199.04,198.92,5.69698311]
[1759064475685,133.6,198.99,198.93,14.26559401]
[1759064475889,0.7,199.03,198.95,13.59559401]
[1759064476083,0.7,199.03,198.96,0.67]
[1759064476277,137.67767589,199.07,198.97,13.59559401]
[1759064476278,0.7,199.05,198.97,13.59559401]
[1759064476484,0.7,199.05,198.98,0.67]
[1759064476772,133.6,199.07,198.99,13.59559401]
[1759064476988,133.6,199.07,199.0,0.67]
[1759064477192,134.3,199.07,199.0,0.67]
[1759064477384,134.3,199.07,199.01,5.02487312]
[1759064477579,0.9,199.1,199.03,13.59559401]
[1759064477788,0.9,199.1,199.04,0.67]
[1759064479492,0.2,199.1,199.05,5.02386335]
[1759064479683,0.2,199.1,199.06,0.67]
[1759064480795,0.2,199.1,199.06,13.59559401]
[1759064480997,0.2,199.1,199.07,0.68]
[1759064481291,0.2,199.1,199.08,0.68]
[1759064481485,0.2,199.1,199.09,5.70285398]
[1759064481883,0.88,199.1,199.05,0.68]
[1759064482606,0.2,199.1,199.06,0.68]
[1759064483492,0.2,199.1,199.06,5.7034298]
[1759064483890,0.2,199.1,199.06,0.68]
[1759064484112,0.88,199.1,199.06,0.68]
[1759064485013,0.2,199.1,199.06,0.68]
[1759064485198,0.2,199.1,199.07,0.68]
[1759064485513,0.2,199.1,199.08,5.02310628]
[1759064485885,0.2,199.1,199.09,0.68]
[1759064486088,0.2,199.1,199.08,0.68]
[1759064486379,0.2,199.1,199.06,39.72]
[1759064486695,0.88,199.1,199.06,0.68]
[1759064487086,0.88,199.1,199.05,58.33933138]
[1759064487276,0.88,199.1,199.06,0.68]
[1759064487478,0.88,199.1,199.06,5.70345019]
[1759064487901,0.2,199.1,199.06,5.70345019]
[1759064488305,0.2,199.1,199.07,0.68]
[1759064490307,0.2,199.1,199.07,5.70335223]
[1759064491118,0.68,199.09,199.05,52.63559401]
[1759064491416,0.2,199.1,199.06,0.68]
[1759064491591,0.88,199.1,199.06,0.68]
[1759064491991,0.68,199.09,199.03,0.68]
[1759064492309,134.28,199.09,199.03,39.7]
[1759064492892,134.28,199.09,199.03,44.72414789]
[1759064493189,133.6,199.09,199.04,14.27559401]
[1759064493597,133.6,199.09,199.05,0.68]
[1759064493996,133.6,199.09,199.04,13.59559401]
[1759064494201,133.6,199.09,199.05,0.68]
[1759064494504,0.68,199.08,199.04,13.59559401]
[1759064494690,0.68,199.08,199.04,14.27559401]
[1759064495496,0.68,199.08,199.04,19.29967334]
[1759064495698,133.6,199.09,199.04,57.63967334]
[1759064496007,133.6,199.09,199.06,13.59559401]
[1759064496303,133.6,199.09,199.07,0.68]
[1759064496488,0.2,199.1,199.08,0.68]
[1759064496688,0.2,199.1,199.06,14.27559401]
[1759064496906,0.2,199.1,199.07,0.68]
[1759064497405,0.2,199.1,199.07,5.70325645]
[1759064497712,0.2,199.1,199.08,0.68]
[1759064497890,0.2,199.1,199.09,0.68]
[1759064499114,0.2,199.1,199.09,14.27559401]
[1759064499291,0.2,199.1,199.09,19.29844799]
[1759064502782,0.2,199.1,199.09,45.29844799]
[1759064503988,1e-08,199.1,199.09,19.29844799]
[1759064504714,1e-08,199.1,199.09,21.31239457]
[1759064504919,1e-08,199.1,199.09,19.29844799]
[1759064508297,1e-08,199.1,199.09,21.31239457]
[1759064508505,1e-08,199.1,199.09,60.31239457]
[1759064510291,0.2,199.14,199.12,26.0]
[1759064510491,0.2,199.14,199.13,52.59559401]
[1759064510903,0.2,199.14,199.13,53.26559401]
[1759064512198,0.2,199.14,199.13,58.28743903]
[1759064514197,0.2,199.14,199.13,57.61743903]
[1759064514399,0.2,199.14,199.13,58.28743903]
[1759064514790,0.2,199.14,199.13,19.28743903]
[1759064515001,0.2,199.14,199.13,58.28743903]
[1759064515420,0.2,199.14,199.13,57.61743903]
[1759064515937,0.2,199.18,199.13,70.84205159]
[1759064516923,0.2,199.18,199.15,18.6169347]
[1759064517124,0.2,199.18,199.16,38.98]
[1759064517820,0.2,199.18,199.15,31.17028644]
[1759064518017,0.2,199.18,199.16,38.98]
[1759064518820,0.86,199.18,199.16,38.98]
[1759064519024,0.86,199.18,199.16,44.00107993]
[1759064519620,0.2,199.18,199.16,44.00107993]
[1759064520822,0.2,199.18,199.16,5.02107993]
[1759064521028,0.2,199.18,199.17,38.98]
[1759064521815,0.2,199.18,199.17,52.57559401]
[1759064522129,1e-08,199.18,199.17,53.24559401]
[1759064522533,1e-08,199.18,199.17,58.26643048]
[1759064523139,1e-08,199.18,199.17,60.27956619]
[1759064523934,1e-08,199.18,199.17,21.29956619]
[1759064524141,1e-08,199.18,199.17,60.27956619]
[1759064525910,1e-08,199.18,199.17,84.26643048]
[1759064526228,1e-08,199.18,199.17,18.61643048]
[1759064526433,1e-08,199.18,199.16,2.01323703]
[1759064526434,0.66000001,199.18,199.16,2.01323703]
[1759064526642,0.66,199.17,199.13,5.02181777]
[1759064526934,1e-08,199.18,199.09,12.55654219]
[1759064526935,0.66,199.16,199.14,38.98]
[1759064527140,1e-08,199.18,199.14,38.98]
[1759064527428,0.66,199.17,199.14,38.98]
[1759064528531,0.66,199.16,199.14,38.98]
[1759064529109,0.66,199.16,199.14,44.00158208]
[1759064529306,0.66000001,199.18,199.14,44.00158208]
[1759064529532,0.66,199.17,199.14,38.98]
[1759064530511,0.66,199.17,199.15,38.98]
[1759064531338,1e-08,199.18,199.15,38.98]
[1759064532626,1e-08,199.18,199.15,44.00121449]
[1759064533030,1e-08,199.18,199.15,38.98]
[1759064533224,0.68000001,199.18,199.15,38.98]
[1759064533440,0.68,199.17,199.15,38.98]
[1759064534622,1e-08,199.18,199.09,26.0]
[1759064534623,0.68,199.16,199.09,26.0]
[1759064534944,0.68,199.15,199.1,38.98]
[1759064535233,0.68,199.14,199.1,38.98]
[1759064536221,26.0,199.17,199.1,38.98]
[1759064536443,0.68,199.16,199.1,39.69]
[1759064536737,0.68,199.16,199.1,44.71246525]
[1759064536944,0.68,199.15,199.1,38.98]
[1759064537145,0.68,199.14,199.08,5.73306232]
[1759064537440,0.68,199.14,199.09,38.98]
[1759064537622,26.0,199.16,199.09,38.98]
[1759064537818,0.68,199.15,199.06,14.30559401]
[1759064538041,0.68,199.14,199.06,13.59559401]
[1759064538350,0.68,199.13,199.07,38.98]
[1759064538523,0.68,199.12,199.07,38.98]
[1759064538726,0.68,199.11,199.07,38.98]
[1759064538924,0.68,199.1,199.07,38.98]
[1759064539342,0.68,199.09,199.01,0.71]
[1759064539523,0.68,199.09,198.99,5.02537815]
[1759064539718,0.68,199.08,199.0,23.8]
[1759064540017,0.68,199.07,199.0,23.8]
[1759064540326,0.68,199.06,199.0,23.8]
[1759064540717,0.68,199.06,199.0,24.51]
[1759064540922,26.68,199.06,199.0,0.71]
[1759064541442,0.68,199.06,198.99,38.98]
[1759064541641,0.69,199.05,198.99,38.98]
[1759064542017,26.69,199.07,199.0,14.30559401]
[1759064542237,26.69,199.07,199.01,0.71]
[1759064542442,26.0,199.07,199.01,0.71]
[1759064542864,26.0,199.07,199.01,5.73462097]
[1759064543223,26.0,199.07,199.01,0.71]
[1759064543623,0.69,199.06,198.96,0.71]
[1759064544324,26.69,199.06,198.96,0.71]
[1759064544849,31.71376557,199.06,198.96,0.71]
[1759064545222,26.69,199.06,198.96,0.71]
[1759064545455,26.69,199.06,198.96,5.73604109]
[1759064545753,26.0,199.04,198.97,0.71]
[1759064545927,133.6,199.1,198.97,39.71]
[1759064545928,26.69,199.07,198.97,39.71]
[1759064546128,26.0,199.06,198.98,14.30559401]
[1759064546339,26.0,199.06,198.99,0.71]
[1759064546851,26.0,199.07,199.01,5.02487312]
[1759064547147,26.0,199.07,199.01,5.73487312]
[1759064547344,133.6,199.1,199.02,0.71]
[1759064548125,39.71,199.13,199.03,13.59559401]
[1759064548327,39.71,199.13,199.05,13.59559401]
[1759064548526,0.69,199.13,199.06,0.71]
[1759064548752,0.69,199.15,199.07,5.02335861]
[1759064549058,0.69,199.15,199.08,0.71]
[1759064549436,26.0,199.14,199.08,0.71]
[1759064550050,0.69,199.15,199.08,0.71]
[1759064550345,0.69,199.17,199.09,13.59559401]
[1759064550572,0.69,199.17,199.1,0.71]
[1759064550746,0.69,199.17,199.1,39.75]
[1759064550940,0.69,199.17,199.1,5.73240841]
[1759064552074,1e-08,199.18,199.11,0.71]
[1759064552451,0.69,199.17,199.1,5.02240841]
[1759064552644,0.69,199.17,199.1,5.73240841]
[1759064553555,0.69,199.16,199.09,57.65841142]
[1759064553756,0.69,199.15,199.09,57.65841142]
[1759064554863,26.0,199.17,199.09,18.61841142]
[1759064555073,0.69,199.17,199.1,5.7324167]
[1759064556381,1e-08,199.18,199.11,14.30559401]
[1759064556762,1e-08,199.18,199.13,13.59559401]
[1759064556951,1e-08,199.18,199.14,5.02159284]
[1759064557265,1e-08,199.18,199.15,13.59559401]
[1759064557567,1e-08,199.18,199.15,14.30559401]
[1759064557774,1e-08,199.18,199.16,0.71]
[1759064558485,1e-08,199.18,199.17,5.02083647]
[1759064558857,1e-08,199.18,199.17,5.73083647]
[1759064559877,1e-08,199.18,199.17,19.32643048]
[1759064560772,1e-08,199.18,199.17,58.36643048]
[1759064562770,1e-08,199.18,199.17,58.34643048]
[1759064563868,1e-08,199.18,199.17,58.36643048]
[1759064566850,1e-08,199.18,199.17,58.34643048]
[1759064567054,1e-08,199.18,199.17,19.32643048]
[1759064567266,1e-08,199.18,199.17,58.34643048]
[1759064568364,1e-08,199.18,199.17,60.35966751]
[1759064570174,1e-08,199.18,199.17,60.33966751]
[1759064572259,1e-08,199.18,199.17,21.33966751]
[1759064572462,1e-08,199.18,199.17,60.31966751]
[1759064573984,1e-08,199.18,199.17,21.33966751]
[1759064574185,1e-08,199.18,199.17,60.31966751]
[1759064574482,1e-08,199.18,199.17,21.33966751]
[1759064574778,1e-08,199.18,199.17,60.31966751]
[1759064574986,1e-08,199.18,199.17,18.61643048]
[1759064575284,1e-08,199.18,199.17,57.59643048]
[1759064576183,1e-08,199.18,199.17,58.26643048]
[1759064577576,1e-08,199.18,199.17,19.28643048]
[1759064577782,1e-08,199.18,199.17,58.26643048]
[1759064578283,1e-08,199.18,199.17,19.28643048]
[1759064578585,1e-08,199.18,199.17,58.26643048]
[1759064578885,1e-08,199.18,199.17,60.27966751]
[1759064579188,1e-08,199.18,199.17,58.26643048]
[1759064581866,1e-08,199.18,199.17,18.61643048]
[1759064582067,0.68000001,199.18,199.17,5.02083647]
[1759064582279,0.68000001,199.18,199.17,43.98083647]
[1759064582675,0.68000001,199.18,199.13,13.59559401]
[1759064582887,0.68,199.17,199.14,38.98]
[1759064583085,0.68,199.16,199.14,38.98]
[1759064583282,0.68,199.15,199.12,5.02209722]
[1759064583518,0.68,199.14,199.12,5.02209722]
[1759064583692,0.68,199.13,199.1,5.0226017]